fUST/lending_fUST_20250612
["ID","MTS","AMOUNT","RATE_DAILY","PERIOD"]
[365515025,1749732640697,-1000.0,0.00023521,2]
[365515026,1749732640707,-1000.0,0.00023521,2]
[365515027,1749732640716,-978.04515246,0.00023521,9]
[365515028,1749732640725,-2200.0,0.00023526,2]
[365515029,1749732640735,-207.0,0.0002353,2]
[365515030,1749732640748,-1000.0,0.00023532,2]
[365515031,1749732640757,-200.0,0.00023549,2]
[365515032,1749732640766,-200.51413315,0.00023549,2]
[365515033,1749732640776,-160.47005698,0.00023549,2]
[365515034,1749732640786,-320778.89178739,0.0002355,2]
[365515035,1749732640795,-151.0,0.0002355,7]
[365515036,1749732640804,-151.0,0.0002355,7]
[365515037,1749732640814,-151.0,0.0002355,7]
[365515038,1749732640823,-254.863323,0.0002355,7]
[365515039,1749732640832,-241.802119,0.0002355,7]
[365515040,1749732640842,-241.802119,0.0002355,7]
[365515041,1749732640851,-151.0,0.0002355,7]
[365515042,1749732640860,-151.0,0.0002355,7]
[365515043,1749732640870,-593.426368,0.0002355,7]
[365515044,1749732640879,-593.426368,0.0002355,7]
[365515045,1749732640888,-155.411693,0.0002355,7]
[365515046,1749732640898,-155.411693,0.0002355,7]
[365515047,1749732640908,-183.72745,0.0002355,7]
[365515048,1749732640917,-183.72745,0.0002355,7]
[365515049,1749732640926,-151.0,0.0002355,7]
[365515050,1749732640937,-151.0,0.0002355,7]
[365515052,1749732640946,-460.0,0.00023561,2]
[365515054,1749732640955,-978.82,0.00023561,4]
[365515056,1749732640965,-576.19,0.00023561,4]
[365515057,1749732640974,-1452.1,0.00023561,4]
[365515058,1749732640983,-573.56,0.00023561,4]
[365515059,1749732640992,-460.0,0.00023561,4]
[365515060,1749732641002,-460.0,0.00023561,4]
[365515061,1749732641011,-460.0,0.00023561,4]
[365515062,1749732641020,-486.45,0.00023561,4]
[365515063,1749732641029,-518.11,0.00023561,4]
[365515064,1749732641039,-2329.72,0.00023561,4]
[365515065,1749732641048,-985.35,0.00023561,4]
[365515066,1749732641057,-460.0,0.00023561,4]
[365515067,1749732641066,-579.6,0.00023561,4]
[365515068,1749732641075,-1291.55,0.00023561,4]
[365515069,1749732641084,-809.41,0.00023561,4]
[365515070,1749732641094,-1603.61,0.00023561,4]
[365515071,1749732641103,-1264.79,0.00023561,4]
[365515072,1749732641113,-32862.93650801,0.00023565,2]
[365515073,1749732641122,-153.0588,0.00023565,7]
[365515074,1749732641132,-262.874581,0.00023565,7]
[365515075,1749732641142,-594.674082,0.00023565,7]
[365515076,1749732641151,-594.674082,0.00023565,7]
[365515077,1749732641160,-151.0,0.00023565,7]
[365515078,1749732641170,-151.0,0.00023565,7]
[365515079,1749732641180,-190.577231,0.00023565,7]
[365515080,1749732641191,-249.83918332,0.00023568,2]
[365515081,1749732641200,-995.36536039,0.00023568,2]
[365515082,1749732641210,-262.874581,0.00023568,7]
[365515083,1749732641220,-262.874581,0.00023568,7]
[365515084,1749732641229,-594.674082,0.00023568,7]
[365515085,1749732641239,-594.674082,0.00023568,7]
[365515086,1749732641247,-151.0,0.00023568,7]
[365515087,1749732641256,-151.0,0.00023568,7]
[365515088,1749732641265,-151.0,0.00023568,7]
[365515089,1749732641275,-593.426368,0.00023568,7]
[365515090,1749732641284,-593.426368,0.00023568,7]
[365515091,1749732641294,-155.411693,0.00023568,7]
[365515092,1749732641303,-155.411693,0.00023568,7]
[365515093,1749732641313,-183.72745,0.00023568,7]
[365515094,1749732641322,-183.72745,0.00023568,7]
[365515095,1749732641331,-151.0,0.00023568,7]
[365515096,1749732641340,-237.779687,0.00023568,7]
[365515097,1749732641350,-32862.93650801,0.00023568,2]
[365515098,1749732641359,-500.0,0.00023573,2]
[365515099,1749732641368,-500.0,0.00023573,2]
[365515100,1749732641377,-500.0,0.00023573,2]
[365515101,1749732641386,-500.0,0.00023573,2]
[365515102,1749732641395,-501.69546006,0.00023573,2]
[365515103,1749732641405,-241.802119,0.00023573,7]
[365515104,1749732641415,-241.802119,0.00023573,7]
[365515105,1749732641424,-260.79556,0.00023573,7]
[365515106,1749732641433,-151.0,0.00023573,7]
[365515107,1749732641443,-800.0,0.00023576,2]
[365515108,1749732641452,-883.41889784,0.00023577,2]
[365515109,1749732641461,-200.0,0.00023599,2]
[365515110,1749732641471,-500.0,0.000236,9]
[365515111,1749732641480,-113068.54979123,0.000236,2]
[365515112,1749732641489,-262.874581,0.000236,7]
[365515113,1749732641499,-262.874581,0.000236,7]
[365515114,1749732641508,-594.674082,0.000236,7]
[365515115,1749732641517,-594.674082,0.000236,7]
[365515116,1749732641526,-151.0,0.000236,7]
[365515117,1749732641535,-247.669792,0.000236,7]
[365515118,1749732641544,-151.0,0.000236,7]
[365515119,1749732641554,-151.0,0.000236,7]
[365515120,1749732641563,-156.380674,0.000236,7]
[365515121,1749732641572,-241.802119,0.000236,7]
[365515122,1749732641581,-241.802119,0.000236,7]
[365515123,1749732641590,-151.0,0.000236,7]
[365515124,1749732641600,-593.426368,0.000236,7]
[365515125,1749732641610,-593.426368,0.000236,7]
[365515126,1749732641619,-155.411693,0.000236,7]
[365515127,1749732641628,-155.411693,0.000236,7]
[365515128,1749732641638,-183.72745,0.000236,7]
[365515129,1749732641648,-183.72745,0.000236,7]
[365515130,1749732641657,-151.0,0.000236,7]
[365515131,1749732641666,-721.56,0.00023601,5]
[365515132,1749732641675,-1012.73188408,0.00023606,2]
[365515133,1749732641686,-32862.93650801,0.00023614,2]
[365515135,1749732641695,-262.874581,0.00023614,7]
[365515137,1749732641706,-262.874581,0.00023614,7]
[365515139,1749732641715,-594.674082,0.00023614,7]
[365515140,1749732641724,-594.674082,0.00023614,7]
[365515141,1749732641733,-3302.91,0.00023617,2]
[365515142,1749732641744,-190.3,0.00023622,7]
[365515143,1749732641754,-883.41889784,0.00023643,2]
[365515144,1749732641764,-161.33469475,0.00023644,2]
[365515146,1749732641774,-883.41889784,0.00023646,2]
[365515148,1749732641784,-460.0,0.00023647,4]
[365515149,1749732641794,-500.0,0.0002365,2]
[365515150,1749732641804,-500.0,0.0002365,2]
[365515151,1749732641813,-500.0,0.0002365,2]
[365515152,1749732641824,-500.0,0.0002365,2]
[365515153,1749732641834,-32862.93650801,0.00023658,2]
[365515154,1749732641843,-1062.824397,0.00023658,2]
[365515155,1749732641852,-262.874581,0.00023658,7]
[365515156,1749732641862,-262.874581,0.00023658,7]
[365515157,1749732641871,-594.674082,0.00023658,7]
[365515158,1749732641880,-594.674082,0.00023658,7]
[365515159,1749732641890,-151.0,0.00023658,7]
[365515160,1749732641898,-151.0,0.00023658,7]
[365515161,1749732641907,-151.0,0.00023658,7]
[365515162,1749732641917,-241.802119,0.00023658,7]
[365515163,1749732641926,-241.802119,0.00023658,7]
[365515164,1749732641936,-151.0,0.00023658,7]
[365515165,1749732641945,-155.411693,0.00023658,7]
[365515166,1749732641954,-155.411693,0.00023658,7]
[365515167,1749732641964,-183.72745,0.00023658,7]
[365515168,1749732641973,-183.72745,0.00023658,7]
[365515169,1749732641982,-151.0,0.00023658,7]
[365515170,1749732641991,-978.04515246,0.00023659,9]
[365515171,1749732641999,-800.0,0.00023659,2]
[365515172,1749732642009,-800.0,0.00023663,2]
[365515173,1749732642018,-706.73511827,0.00023666,2]
[365515174,1749732642028,-593.426368,0.00023666,7]
[365515175,1749732642038,-593.426368,0.00023666,7]
[365515176,1749732642048,-883.41889784,0.00023676,2]
[365515177,1749732642057,-1689.123308,0.0002368,5]
[365515178,1749732642066,-706.73511828,0.00023686,2]
[365515179,1749732642075,-200.0,0.00023686,2]
[365515180,1749732642084,-91768.27587007,0.00023687,2]
[365515181,1749732642093,-262.874581,0.00023687,7]
[365515182,1749732642102,-262.874589,0.00023687,7]
[365515183,1749732642111,-594.674082,0.00023687,7]
[365515184,1749732642120,-594.674089,0.00023687,7]
[365515185,1749732642129,-151.0,0.00023687,7]
[365515186,1749732642137,-151.0,0.00023687,7]
[365515187,1749732642146,-247.644723,0.00023687,7]
[365515188,1749732642156,-241.802119,0.00023687,7]
[365515189,1749732642165,-241.802119,0.00023687,7]
[365515191,1749732642175,-252.22739,0.00023687,7]
[365515192,1749732642185,-593.426368,0.00023687,7]
[365515193,1749732642194,-593.42637,0.00023687,7]
[365515194,1749732642203,-155.411693,0.00023687,7]
[365515195,1749732642212,-155.411693,0.00023687,7]
[365515196,1749732642221,-183.72745,0.00023687,7]
[365515197,1749732642229,-183.72745,0.00023687,7]
[365515198,1749732642238,-151.0,0.00023687,7]
[365515199,1749732642248,-9522.35592051,0.00023688,2]
[365515200,1749732642258,-200.0,0.00023691,7]
[365515201,1749732642267,-200.0,0.00023691,7]
[365515202,1749732642276,-200.0,0.00023691,7]
[365515203,1749732642370,-200.0,0.00023691,7]
[365515204,1749732642379,-200.0,0.00023691,7]
[365515205,1749732642389,-200.0,0.00023691,7]
[365515206,1749732642398,-201.654,0.00023691,7]
[365515207,1749732642407,-706.73511828,0.000237,2]
[365515208,1749732642415,-1000.0,0.000237,5]
[365515209,1749732642424,-721.56,0.00023701,5]
[365515210,1749732642435,-200.0,0.00023702,7]
[365515211,1749732642444,-200.0,0.00023702,7]
[365515212,1749732642453,-200.0,0.00023702,7]
[365515213,1749732642462,-200.0,0.00023702,7]
[365515214,1749732642471,-200.0,0.00023702,7]
[365515216,1749732642480,-200.0,0.00023702,7]
[365515217,1749732642488,-200.0,0.00023702,7]
[365515218,1749732642497,-168.0,0.00023718,2]
[365515219,1749732642506,-800.0,0.00023741,2]
[365515220,1749732642515,-160.0,0.0002375,5]
[365515221,1749732642524,-167.45408736,0.0002375,5]
[365515222,1749732642533,-160.0,0.0002375,5]
[365515223,1749732642542,-160.0,0.0002375,5]
[365515224,1749732642552,-986.7451833,0.00023753,3]
[365515225,1749732642561,-800.0,0.00023773,2]
[365515226,1749732642571,-10653.07866369,0.0002378,5]
[365515227,1749732642580,-200.0,0.00023787,2]
[365515228,1749732642589,-102968.31212813,0.00023788,2]
[365515230,1749732642598,-151.655928,0.00023788,7]
[365515232,1749732642607,-151.0,0.00023788,7]
[365515234,1749732642616,-151.0,0.00023788,7]
[365515236,1749732642625,-241.802119,0.00023788,7]
[365515238,1749732642635,-241.802119,0.00023788,7]
[365515239,1749732642644,-155.411693,0.00023788,7]
[365515240,1749732642653,-155.411697,0.00023788,7]
[365515241,1749732642662,-183.72745,0.00023788,7]
[365515242,1749732642671,-183.72745,0.00023788,7]
[365515243,1749732642680,-978.04515246,0.00023797,9]
[365515244,1749732642690,-200.0,0.00023799,2]
[365515245,1749732642700,-30943.22394503,0.000238,3]
[365515247,1749732643118,-160.0,0.00019779,2]
[365515248,1749732643128,-108.46692552,0.00021491,2]
[365515249,1749732643140,-51.53307448,0.00021491,2]
[365515250,1749732643150,-620.5,0.00021633,3]
[365515252,1749732643159,-2115.0,0.0002243,4]
[365515254,1749732643169,-613.39151939,0.00023003,3]
[365515255,1749732643181,-627.60848061,0.00023003,3]
[365515256,1749732643191,-206914.52256401,0.000238,3]
[365515257,1749732643200,-160.0,0.000238,3]
[365515258,1749732643209,-2000.0,0.000238,2]
[365515260,1749732643219,-2000.0,0.000238,2]
[365515262,1749732643228,-2000.0,0.000238,2]
[365515264,1749732643237,-500.0,0.000238,2]
[365515266,1749732643247,-500.0,0.000238,2]
[365515269,1749732643256,-266.0,0.000238,2]
[365515272,1749732643265,-500.0,0.000238,2]
[365515275,1749732643274,-500.0,0.000238,2]
[365515277,1749732643284,-500.0,0.000238,2]
[365515280,1749732643294,-500.0,0.000238,2]
[365515282,1749732643303,-500.0,0.000238,2]
[365515283,1749732643313,-500.57611164,0.000238,2]
[365515284,1749732643323,-467699.12856636,0.000238,3]
[365515285,1749732643332,-160.0,0.000238,3]
[365515286,1749732643342,-1000.0,0.000238,7]
[365515287,1749732643351,-207.0,0.000238,2]
[365515288,1749732643361,-156.0,0.000238,2]
[365515289,1749732643371,-151.0,0.000238,7]
[365515290,1749732643381,-151.0,0.000238,7]
[365515291,1749732643391,-151.0,0.000238,7]
[365515292,1749732643400,-221.311006,0.000238,7]
[365515293,1749732643409,-182688.31,0.000238,7]
[365515294,1749732643418,-208.0,0.000238,2]
[365515295,1749732643427,-4259.09,0.000238,7]
[365515296,1749732643437,-241.802119,0.000238,7]
[365515297,1749732643446,-241.802119,0.000238,7]
[365515298,1749732643456,-241.802119,0.000238,7]
[365515299,1749732643466,-241.802114,0.000238,7]
[365515300,1749732643475,-2000.0,0.000238,2]
[365515301,1749732643485,-190.3,0.000238,7]
[365515302,1749732643494,-688.7315,0.000238,2]
[365515303,1749732643503,-688.7315,0.000238,2]
[365515304,1749732643512,-207.0,0.000238,2]
[365515305,1749732643521,-160.729902,0.000238,7]
[365515306,1749732643530,-721.56,0.00023801,6]
[365515307,1749732643539,-12500.0,0.00023808,3]
[365515308,1749732643548,-2174.63291492,0.00023809,2]
[365515309,1749732643558,-7957.44036979,0.0002381,2]
[365515310,1749732643568,-5000.0,0.0002381,2]
[365515311,1749732643578,-5000.0,0.0002381,2]
[365515312,1749732643588,-5000.0,0.0002381,2]
[365515313,1749732643598,-5000.0,0.0002381,2]
[365515314,1749732643607,-9522.35592044,0.00023818,2]
[365515315,1749732643616,-155.61,0.00023834,6]
[365515316,1749732643626,-160.0,0.00023834,2]
[365515317,1749732643635,-460.0,0.00023835,2]
[365515318,1749732643645,-978.82,0.00023835,4]
[365515319,1749732643654,-576.19,0.00023835,4]
[365515320,1749732643664,-1452.1,0.00023835,4]
[365515321,1749732643673,-460.0,0.00023835,4]
[365515322,1749732643683,-460.0,0.00023835,4]
[365515323,1749732643692,-460.0,0.00023835,4]
[365515324,1749732643701,-486.45,0.00023835,4]
[365515325,1749732643710,-518.11,0.00023835,4]
[365515326,1749732643719,-2329.72,0.00023835,4]
[365515327,1749732643728,-985.35,0.00023835,4]
[365515328,1749732643738,-460.0,0.00023835,4]
[365515329,1749732643755,-579.6,0.00023835,4]
[365515330,1749732643765,-1291.55,0.00023835,4]
[365515331,1749732643774,-809.41,0.00023835,4]
[365515332,1749732643783,-1603.61,0.00023835,4]
[365515333,1749732643794,-1264.79,0.00023835,4]
[365515334,1749732643805,-42.95376189,0.00023836,2]
[365515335,1749732643819,-284.52178401,0.00023836,2]
[365515336,1749732643830,-224.14022047,0.00023836,30]
[365515337,1749732643853,-166.97627254,0.00021444,2]
[365515338,1749732643863,-151.0,0.00023197,2]
[365515339,1749732643871,-182.02372746,0.00023836,30]
[365515352,1749732646152,-460.0,0.00021095,4]
[365515353,1749732646162,-460.0,0.00021095,4]
[365515354,1749732646172,-460.0,0.00021369,4]
[365515355,1749732646181,-460.0,0.00021369,4]
[365515356,1749732646192,-460.0,0.00021643,4]
[365515357,1749732646202,-460.0,0.00021643,4]
[365515358,1749732646211,-460.0,0.00021917,4]
[365515359,1749732646220,-460.0,0.00021917,4]
[365515360,1749732646230,-460.0,0.00022191,4]
[365515361,1749732646239,-460.0,0.00022191,4]
[365515362,1749732646249,-460.0,0.00022465,4]
[365515363,1749732646259,-460.0,0.00022465,4]
[365515364,1749732646268,-460.0,0.00022739,4]
[365515365,1749732646277,-460.0,0.00022739,4]
[365515366,1749732646287,-166.97627253,0.00022972,2]
[365515367,1749732646296,-460.0,0.00023013,4]
[365515368,1749732646305,-460.0,0.00023013,4]
[365515369,1749732646315,-460.0,0.00023287,4]
[365515370,1749732646324,-460.0,0.00023287,4]
[365515371,1749732646334,-460.0,0.00023561,4]
[365515372,1749732646343,-460.0,0.00023561,4]
[365515373,1749732646353,-2200.0,0.00023658,2]
[365515374,1749732646363,-460.0,0.00023835,4]
[365515375,1749732646458,-460.0,0.00023835,4]
[365515376,1749732646468,-1593.83605207,0.00023836,30]
[365515377,1749732646477,-168.0,0.00023885,2]
[365515378,1749732646486,-5000.0,0.0002389,2]
[365515379,1749732646496,-5000.0,0.0002389,2]
[365515380,1749732646505,-2295.22248079,0.0002389,2]
[365515381,1749732646516,-2704.77751921,0.0002389,2]
[365515382,1749732646526,-5000.0,0.0002389,2]
[365515383,1749732646535,-6396.1876754,0.000239,2]
[365515384,1749732646608,-545.30048297,0.000239,2]
[365515385,1749732646619,-3049.56953397,0.000239,2]
[365515386,1749732646628,-721.56,0.00023901,7]
[365515387,1749732646637,-55518.84288363,0.0002391,7]
[365515388,1749732646647,-151.0,0.0002391,7]
[365515389,1749732646656,-500.79071898,0.00023921,2]
[365515390,1749732646665,-460.0,0.00023921,4]
[365515391,1749732646674,-978.04515246,0.00023934,10]
[365515392,1749732646684,-505.79728667,0.00023937,2]
[365515393,1749732646694,-5000.0,0.00023938,2]
[365515394,1749732646703,-9522.35592044,0.00023948,2]
[365515395,1749732646712,-223.0315306,0.00023969,2]
[365515396,1749732646721,-168.0,0.00023974,2]
[365515397,1749732646730,-2706.65738053,0.00023982,2]
[365515398,1749732646743,-2359.14981361,0.00023982,2]
[365515399,1749732646754,-168.0,0.00023987,2]
[365515400,1749732646764,-200.0,0.00023999,2]
[365515401,1749732646773,-1000.0,0.00023999,6]
[365515402,1749732646783,-938.13257742,0.00023999,8]
[365515485,1749733053559,2341.24,0.00024939,60]
[365515492,1749733122172,296.92,0.00016,90]
[365515509,1749733433879,162.927454,0.00013699,2]
[365515540,1749733810392,475.0,0.00018,2]
[365515544,1749733832219,-154.15271674,0.00019182,2]
[365515546,1749733832229,-1200.0,0.00019281,2]
[365515548,1749733832241,-6033.85140095,0.00019282,2]
[365515564,1749733832439,-3966.14859905,0.00019282,2]
[365515567,1749733832449,-300.0,0.00019414,2]
[365515569,1749733832459,-300.0,0.00019414,2]
[365515570,1749733832469,-300.0,0.00019414,2]
[365515572,1749733832478,-530.04308767,0.00019415,2]
[365515574,1749733832490,-500.90486903,0.00019415,2]
[365515595,1749733838369,-2588.4635033,0.00019415,2]
[365515596,1749733838379,-180.089272,0.00019638,2]
[365515597,1749733838388,-166.6284359,0.00019855,2]
[365515598,1749733838399,-154.15271674,0.00019855,2]
[365515599,1749733838408,-293.9913945,0.00019954,2]
[365515600,1749733838417,-500.0,0.00020163,2]
[365515601,1749733838427,-300.0,0.00020311,2]
[365515602,1749733838436,-24900.0,0.00020314,2]
[365515603,1749733838445,-177.17469684,0.00020356,2]
[365515604,1749733838455,-210.479,0.00020456,2]
[365515605,1749733838464,-794.43,0.00020486,2]
[365515606,1749733838474,-4649.0,0.00020708,2]
[365515608,1749733838483,-973.80289177,0.000209,4]
[365515609,1749733838495,-162.927454,0.00020951,2]
[365515610,1749733838505,-2534.6787259,0.00020995,2]
[365515611,1749733838514,-213.20212768,0.00021018,2]
[365515612,1749733838523,-160.0,0.00021018,2]
[365515613,1749733838532,-160.0,0.00021021,2]
[365515614,1749733838541,-160.0,0.00021021,2]
[365515615,1749733838551,-844.79171733,0.00021021,2]
[365515616,1749733838560,-973.80289166,0.00021038,4]
[365515617,1749733838569,-500.0,0.00021087,2]
[365515618,1749733838577,-500.0,0.00021087,2]
[365515619,1749733838587,-551.48999343,0.00021087,2]
[365515620,1749733838595,-500.0,0.00021087,2]
[365515621,1749733838604,-500.0,0.00021087,2]
[365515622,1749733838614,-276.46032091,0.00021087,2]
[365515623,1749733838625,-500.0,0.00021087,2]
[365515624,1749733838634,-500.0,0.00021087,2]
[365515625,1749733838644,-295.38150556,0.00021087,2]
[365515626,1749733838653,-211.95675474,0.00021087,2]
[365515627,1749733838662,-500.0,0.00021087,2]
[365515628,1749733838671,-500.0,0.00021087,2]
[365515629,1749733838680,-500.0,0.00021087,2]
[365515630,1749733838690,-500.0,0.00021087,2]
[365515631,1749733838700,-500.0,0.00021087,2]
[365515632,1749733838709,-361.64909145,0.00021087,2]
[365515633,1749733838719,-186.67474246,0.00021087,2]
[365515635,1749733838729,-500.0,0.00021087,2]
[365515637,1749733838738,-500.0,0.00021087,2]
[365515639,1749733838748,-500.0,0.00021087,2]
[365515641,1749733838758,-500.0,0.00021087,2]
[365515643,1749733838768,-170.70361029,0.00021087,2]
[365515645,1749733838778,-528.50674723,0.00021087,2]
[365515647,1749733838787,-500.0,0.00021087,2]
[365515649,1749733838797,-500.0,0.00021087,2]
[365515651,1749733838806,-500.0,0.00021087,2]
[365515653,1749733838816,-500.0,0.00021087,2]
[365515655,1749733838827,-500.0,0.00021087,2]
[365515657,1749733838837,-500.0,0.00021087,2]
[365515659,1749733838846,-500.0,0.00021087,2]
[365515661,1749733838856,-500.0,0.00021087,2]
[365515663,1749733838865,-500.0,0.00021087,2]
[365515664,1749733838875,-500.0,0.00021087,2]
[365515665,1749733838885,-500.0,0.00021087,2]
[365515666,1749733838894,-500.0,0.00021087,2]
[365515667,1749733838905,-500.0,0.00021087,2]
[365515668,1749733838914,-500.0,0.00021087,2]
[365515669,1749733838924,-500.0,0.00021087,2]
[365515671,1749733838933,-573.50383713,0.00021087,2]
[365515673,1749733838942,-500.0,0.00021087,2]
[365515675,1749733838952,-500.0,0.00021087,2]
[365515676,1749733838961,-500.0,0.00021087,2]
[365515678,1749733838971,-500.0,0.00021087,2]
[365515681,1749733838980,-500.0,0.00021087,2]
[365515683,1749733838990,-500.0,0.00021087,2]
[365515685,1749733838999,-500.0,0.00021087,2]
[365515687,1749733839009,-500.0,0.00021087,2]
[365515689,1749733839019,-500.0,0.00021087,2]
[365515691,1749733839029,-500.0,0.00021087,2]
[365515693,1749733839039,-500.0,0.00021087,2]
[365515695,1749733839048,-500.0,0.00021087,2]
[365515697,1749733839058,-500.0,0.00021087,2]
[365515698,1749733839067,-500.0,0.00021087,2]
[365515699,1749733839077,-500.0,0.00021087,2]
[365515700,1749733839087,-500.0,0.00021087,2]
[365515701,1749733839096,-500.0,0.00021087,2]
[365515703,1749733839105,-500.0,0.00021087,2]
[365515705,1749733839115,-500.0,0.00021087,2]
[365515707,1749733839125,-500.0,0.00021087,2]
[365515709,1749733839136,-500.0,0.00021087,2]
[365515711,1749733839150,-500.0,0.00021087,2]
[365515713,1749733839160,-500.0,0.00021087,2]
[365515718,1749733839304,-500.0,0.00021087,2]
[365515719,1749733839316,-500.0,0.00021087,2]
[365515720,1749733839326,-500.0,0.00021087,2]
[365515721,1749733839335,-500.0,0.00021087,2]
[365515722,1749733839345,-592.32808222,0.00021087,2]
[365515723,1749733839355,-500.0,0.00021087,2]
[365515724,1749733839366,-500.0,0.00021087,2]
[365515725,1749733839376,-500.0,0.00021087,2]
[365515726,1749733839386,-500.0,0.00021087,2]
[365515727,1749733839396,-500.0,0.00021087,2]
[365515728,1749733839405,-500.0,0.00021087,2]
[365515729,1749733839415,-500.0,0.00021087,2]
[365515730,1749733839425,-500.0,0.00021087,2]
[365515731,1749733839435,-500.0,0.00021087,2]
[365515732,1749733839444,-500.0,0.00021087,2]
[365515733,1749733839454,-500.0,0.00021087,2]
[365515734,1749733839464,-565.55596937,0.00021087,2]
[365515735,1749733839473,-500.0,0.00021087,2]
[365515736,1749733839483,-500.0,0.00021087,2]
[365515737,1749733839493,-500.0,0.00021087,2]
[365515738,1749733839503,-500.0,0.00021087,2]
[365515739,1749733839513,-500.0,0.00021087,2]
[365515740,1749733839523,-500.0,0.00021087,2]
[365515741,1749733839533,-500.0,0.00021094,2]
[365515742,1749733839543,-160.0,0.00021094,2]
[365515743,1749733839552,-1000.0,0.00021095,4]
[365515744,1749733839562,-460.0,0.00021095,4]
[365515745,1749733839571,-304.98347318,0.00021095,4]
[365515746,1749733839580,-546.02494343,0.00021095,4]
[365515747,1749733839590,-460.0,0.00021095,4]
[365515748,1749733839600,-171.53261845,0.00021095,4]
[365515749,1749733839610,-460.0,0.00021095,4]
[365515750,1749733839620,-460.0,0.00021095,4]
[365515751,1749733839631,-363.01752025,0.00021095,4]
[365515752,1749733839642,-460.0,0.00021095,4]
[365515753,1749733839654,-460.0,0.00021095,4]
[365515754,1749733839664,-460.0,0.00021095,4]
[365515755,1749733839673,-460.0,0.00021095,4]
[365515756,1749733839683,-460.0,0.00021095,4]
[365515757,1749733839693,-460.0,0.00021095,4]
[365515758,1749733839702,-460.0,0.00021095,2]
[365515759,1749733839712,-460.0,0.00021095,4]
[365515760,1749733839722,-460.0,0.00021095,4]
[365515761,1749733839732,-460.0,0.00021095,4]
[365515762,1749733839742,-458.63936939,0.00021095,4]
[365515763,1749733839753,-460.0,0.00021095,4]
[365515764,1749733839763,-460.0,0.00021095,4]
[365515765,1749733839774,-460.0,0.00021095,4]
[365515766,1749733839785,-460.0,0.00021095,4]
[365515767,1749733839795,-460.0,0.00021095,4]
[365515768,1749733839805,-153.51658329,0.00021095,2]
[365515769,1749733839815,-460.0,0.00021095,4]
[365515770,1749733839825,-460.0,0.00021095,4]
[365515771,1749733839835,-365.62042628,0.00021095,4]
[365515772,1749733839845,-1484.78,0.00021095,4]
[365515773,1749733839856,-460.0,0.00021095,4]
[365515774,1749733839865,-460.0,0.00021095,4]
[365515775,1749733839874,-473.15113895,0.00021095,4]
[365515776,1749733839884,-358.81434028,0.00021095,4]
[365515777,1749733839895,-454.4415338,0.00021095,4]
[365515778,1749733839904,-460.0,0.00021095,4]
[365515779,1749733839914,-460.0,0.00021095,4]
[365515780,1749733839923,-460.0,0.00021095,4]
[365515781,1749733839933,-595.1,0.00021095,4]
[365515782,1749733839943,-460.0,0.00021095,4]
[365515783,1749733839954,-460.0,0.00021095,4]
[365515784,1749733839964,-271.91773466,0.00021095,4]
[365515785,1749733839974,-460.0,0.00021095,4]
[365515786,1749733839984,-460.0,0.00021095,4]
[365515787,1749733839994,-460.0,0.00021095,4]